bitfinex/quotes_ETHUSD_20251213
["timestamp","ask_amount","ask_price","bid_price","bid_amount"]
[1765652476307,0.483,3104.0,3103.9,3.22175327]
[1765652476502,0.001,3104.0,3103.9,4.64105327]
[1765652476799,0.001,3104.0,3103.9,6.23863934]
[1765652483209,0.001,3104.0,3103.9,5.74953934]
[1765652483627,0.001,3104.0,3103.9,6.21473934]
[1765652484924,0.001,3104.0,3103.9,5.74953934]
[1765652496612,0.001,3104.0,3103.9,6.21523934]
[1765652496806,0.001,3104.0,3103.9,11.34543402]
[1765652501941,0.001,3104.0,3103.9,11.34391051]
[1765652502437,0.001,3104.0,3103.9,15.7543858]
[1765652503127,0.001,3104.0,3103.9,11.9243858]
[1765652506251,0.001,3104.0,3103.9,6.33001463]
[1765652506454,0.4519,3104.0,3103.9,5.75813934]
[1765652507122,0.9192,3104.0,3103.9,5.25013934]
[1765652508745,0.9192,3104.0,3103.9,4.14165327]
[1765652510646,0.9192,3104.0,3103.8,3.2218353]
[1765652510846,0.9192,3104.0,3103.6,3.22206469]
[1765652510847,0.4673,3103.9,3103.6,3.22206469]
[1765652511144,0.6376,3103.7,3103.6,3.22206469]
[1765652511551,1.1021,3103.7,3103.6,3.22206469]
[1765652512253,1.1021,3103.7,3103.3,6.44475236]
[1765652512472,0.4673,3103.6,3103.3,6.44475236]
[1765652512624,0.4482,3103.4,3103.3,3.22237618]
[1765652513121,0.9153,3103.4,3103.3,3.22237618]
[1765652513330,0.4482,3103.4,3103.3,3.22237618]
[1765652514035,0.4482,3103.4,3103.3,3.68947618]
[1765652514258,0.9153,3103.4,3103.3,3.68947618]
[1765652514961,0.4482,3103.4,3103.3,3.68947618]
[1765652515150,0.4671,3103.6,3103.3,6.91185236]
[1765652515733,0.4484,3103.4,3103.3,3.68947618]
[1765652515934,0.4484,3103.4,3103.3,7.51947618]
[1765652516131,0.9153,3103.4,3103.3,7.51947618]
[1765652519572,0.4484,3103.4,3103.3,7.51947618]
[1765652519941,0.4669,3103.6,3103.3,10.74185236]
[1765652520473,0.4669,3103.6,3103.3,10.27475236]
[1765652520652,0.4486,3103.4,3103.3,7.05237618]
[1765652521061,0.4486,3103.4,3103.3,7.51927618]
[1765652521985,0.9153,3103.4,3103.3,7.51927618]
[1765652522370,0.4486,3103.4,3103.3,7.51927618]
[1765652522755,0.9153,3103.4,3103.3,7.51927618]
[1765652525289,0.4486,3103.4,3103.3,7.51927618]
[1765652527661,0.9153,3103.4,3103.3,7.51927618]
[1765652527974,0.9153,3103.4,3103.3,7.05237618]
[1765652528711,0.6534,3103.7,3103.3,10.27475236]
[1765652529195,0.4929,3103.6,3103.3,10.27475236]
[1765652530187,0.4929,3103.8,3103.3,15.35493758]
[1765652530900,0.4929,3103.8,3103.3,14.89303758]
[1765652532187,0.4929,3103.8,3103.3,15.35493758]
[1765652533005,0.4929,3103.8,3103.3,14.89303758]
[1765652533216,0.4929,3103.8,3103.4,0.4619]
[1765652533590,0.4929,3103.8,3103.3,14.89303758]
[1765652533790,0.4929,3103.8,3103.4,3.83]
[1765652535121,0.4929,3103.8,3103.5,3.22216851]
[1765652535622,0.4261,3103.6,3103.5,3.22216851]
[1765652536229,0.9184,3103.6,3103.5,3.22216851]
[1765652539853,0.9184,3103.6,3103.3,6.44475236]
[1765652540033,0.4929,3103.5,3103.3,6.44475236]
[1765652540347,0.4261,3103.4,3103.3,3.22237618]
[1765652541056,0.9184,3103.4,3103.3,3.22237618]
[1765652543575,0.9184,3103.4,3103.3,4.57211633]
[1765652543865,0.4261,3103.4,3103.3,4.57211633]
[1765652545663,0.8999,3103.4,3103.3,8.40211633]
[1765652546381,0.4261,3103.4,3103.3,8.40211633]
[1765652546544,0.8958,3103.4,3103.3,8.40211633]
[1765652546742,0.8958,3103.4,3103.3,7.05237618]
[1765652547201,0.4261,3103.4,3103.2,3.83]
[1765652547373,0.4491,3103.0,3102.5,3.83]
[1765652547556,0.6727,3102.9,3102.6,10.2762064]
[1765652547755,0.6727,3102.9,3102.7,1.02762064]
[1765652547957,0.4697,3102.8,3102.7,1.02762064]
[1765652548157,0.899,3102.8,3102.7,1.02762064]
[1765652548658,0.4293,3102.8,3102.7,1.02762064]
[1765652550061,0.4293,3102.8,3102.7,4.25061996]
[1765652550265,0.4697,3103.0,3102.7,7.47361928]
[1765652551560,0.4697,3103.0,3102.7,11.30361928]
[1765652552464,1.16,3106.6,3102.9,0.4873]
[1765652552465,0.4697,3103.6,3102.9,0.4873]
[1765652552670,0.30066816,3103.5,3103.0,9.04590029]
[1765652552897,0.4697,3103.6,3103.0,4.3173]
[1765652553200,0.4337,3103.1,3103.0,3.83]
[1765652553489,0.4337,3103.1,3102.9,3.83]
[1765652553696,0.9031,3103.1,3102.9,3.83]
[1765652553899,0.0047,3103.0,3102.9,3.83]
[1765652554196,0.0047,3103.0,3102.9,7.05279158]
[1765652556164,0.0047,3103.0,3102.9,3.83]
[1765652556360,0.4744,3103.0,3102.9,7.05279158]
[1765652557189,0.4744,3103.0,3102.9,3.83]
[1765652557566,0.4744,3103.0,3102.8,3.22287348]
[1765652557767,0.6276,3102.9,3102.8,3.22287348]
[1765652558379,1.0973,3102.9,3102.4,6.44862196]
[1765652558587,0.0089,3102.7,3102.4,7.89507136]
[1765652558790,0.4697,3103.3,3102.5,0.4545]
[1765652559114,0.4697,3103.2,3102.6,0.4873]
[1765652559281,0.4697,3103.2,3102.6,5.21590029]
[1765652559482,0.4697,3103.2,3102.7,0.56704003]
[1765652559720,0.1985,3103.4,3102.7,0.56704003]
[1765652559721,0.6682,3103.4,3102.8,1.1]
[1765652560211,0.6682,3103.4,3102.8,1.5545]
[1765652560408,8.13383586,3103.9,3102.9,6.44558316]
[1765652560409,0.76387529,3103.9,3102.9,6.44558316]
[1765652560706,0.9777,3103.7,3103.0,3.83]
[1765652560883,0.30032811,3103.6,3103.0,9.01310029]
[1765652561084,0.4697,3103.6,3103.0,4.2845]
[1765652561306,0.4697,3103.6,3103.0,3.83]
[1765652562881,0.4697,3103.6,3103.1,6.44516772]
[1765652566494,0.4697,3103.6,3103.1,10.27516772]
[1765652569233,0.4697,3103.6,3103.1,10.72966772]
[1765652569633,0.4697,3103.6,3103.1,10.27516772]
[1765652569933,0.30036112,3103.5,3103.1,10.27516772]
[1765652570136,0.4697,3103.6,3103.1,10.27516772]
[1765652571128,0.30041321,3103.5,3103.1,10.27516772]
[1765652571332,0.4697,3103.6,3103.1,10.27516772]
[1765652571633,0.30041335,3103.5,3103.1,7.05258386]
[1765652571833,0.4697,3103.6,3103.1,7.05258386]
[1765652572037,0.30041291,3103.5,3103.1,7.05258386]
[1765652572233,0.4697,3103.6,3103.1,7.05258386]
[1765652572524,0.30044565,3103.5,3103.1,7.05258386]
[1765652572705,0.4697,3103.6,3103.1,7.05258386]
[1765652572905,0.30044563,3103.5,3103.1,7.05258386]
[1765652573106,0.4697,3103.6,3103.1,7.05258386]
[1765652573406,0.30048446,3103.5,3103.1,7.05258386]
[1765652573615,0.4697,3103.6,3103.1,7.05258386]
[1765652573807,0.30048778,3103.5,3103.1,7.05258386]
[1765652574012,0.4697,3103.6,3103.1,7.05258386]
[1765652574232,0.30052803,3103.5,3103.1,10.27516772]
[1765652574433,0.4697,3103.6,3103.1,10.27516772]
[1765652574634,0.30053441,3103.5,3103.1,10.27516772]
[1765652574840,0.4697,3103.6,3103.1,10.27516772]
[1765652575048,0.30053442,3103.5,3103.1,10.27516772]
[1765652575349,0.4697,3103.6,3103.1,10.27516772]
[1765652575544,0.30059222,3103.5,3103.1,10.27516772]
[1765652575842,0.4697,3103.6,3103.1,10.27516772]
[1765652576044,0.30059228,3103.5,3103.1,10.27516772]
[1765652576247,0.30066687,3103.4,3103.2,0.4727]
[1765652576442,0.6914,3103.9,3103.2,1.56654677]
[1765652576630,0.6914,3103.9,3103.3,1.567]
[1765652576631,0.30070746,3103.8,3103.3,1.567]
[1765652576832,1.1663,3103.9,3103.3,2.0397]
[1765652577016,0.30070751,3103.8,3103.3,2.0397]
[1765652577214,1.1663,3103.9,3103.3,2.0397]
[1765652577449,0.30072033,3103.8,3103.4,6.44454468]
[1765652577746,1.1663,3103.9,3103.4,6.44454468]
[1765652577946,0.77564319,3103.8,3103.4,6.91724468]
[1765652578145,0.4749,3103.8,3103.4,6.91724468]
[1765652578650,0.4749,3103.8,3103.4,6.44454468]
[1765652578961,0.4749,3103.8,3103.4,6.91724468]
[1765652579637,0.9829,3103.8,3103.4,6.91724468]
[1765652580429,0.9829,3103.8,3103.4,6.44454468]
[1765652581127,0.508,3103.8,3103.4,6.44454468]
[1765652581334,0.4749,3103.7,3103.4,6.44454468]
[1765652582552,0.508,3103.8,3103.4,6.8759223]
[1765652582852,0.9829,3103.8,3103.4,7.3486223]
[1765652583021,0.9829,3103.8,3103.4,6.8759223]
[1765652583221,0.508,3103.8,3103.4,6.8759223]
[1765652583544,0.4749,3103.7,3103.4,6.8759223]
[1765652585052,0.4286,3103.5,3103.4,3.65364996]
[1765652585253,0.9031,3103.5,3103.4,3.22227234]
[1765652585624,0.4286,3103.5,3103.4,3.22227234]
[1765652586354,0.9031,3103.5,3103.4,3.22227234]
[1765652590763,0.4286,3103.5,3103.4,3.22227234]
[1765652590968,0.9825,3103.8,3103.4,7.58201905]
[1765652591134,0.9825,3103.8,3103.4,6.44454468]
[1765652591328,0.4749,3103.7,3103.4,6.44454468]
[1765652591561,0.4286,3103.5,3103.4,3.22227234]
[1765652592430,0.4749,3103.7,3103.4,6.91154468]
[1765652593870,0.1834,3103.9,3103.4,6.91154468]
[1765652594165,0.4286,3103.5,3103.4,3.22227234]
[1765652594957,0.9031,3103.5,3103.4,3.22227234]
[1765652597451,0.4286,3103.5,3103.4,3.22227234]
[1765652597652,0.9031,3103.5,3103.4,3.22227234]
[1765652598060,0.4286,3103.5,3103.4,3.22227234]
[1765652598557,0.4745,3103.7,3103.4,6.91154468]
[1765652600334,0.001,3104.0,3103.6,0.467]
[1765652600664,0.001,3104.0,3103.7,3.68896088]
[1765652600665,0.508,3103.8,3103.7,3.68896088]
[1765652601566,1.23568438,3103.8,3103.7,3.22196088]
[1765652601938,1.71008438,3103.8,3103.7,3.22196088]
[1765652602331,1.71008438,3103.8,3103.6,3.22203691]
[1765652602547,0.4749,3103.7,3103.6,3.22203691]
[1765652602749,0.9019,3103.7,3103.3,6.44475236]
[1765652602948,0.4749,3103.7,3103.3,6.44475236]
[1765652603154,0.4749,3103.6,3103.3,6.44475236]
[1765652607595,0.508,3103.8,3103.3,6.44475236]
[1765652607769,0.30095146,3103.7,3103.3,6.93615236]
[1765652607969,0.508,3103.8,3103.4,0.4914]
[1765652608199,0.30095166,3103.7,3103.4,0.4914]
[1765652608402,0.508,3103.8,3103.4,0.4914]
[1765652608585,0.30096627,3103.7,3103.4,0.4914]
[1765652608889,0.508,3103.8,3103.4,0.4914]
[1765652609089,0.30096431,3103.7,3103.4,0.4914]
[1765652609291,0.508,3103.8,3103.4,0.4914]
[1765652609466,0.30097522,3103.7,3103.5,3.22216851]
[1765652609671,0.508,3103.9,3103.5,6.44433702]
[1765652609880,0.30097524,3103.8,3103.5,6.93573702]
[1765652610209,0.30097524,3103.7,3103.5,6.93573702]
[1765652610378,0.9837,3103.9,3103.5,6.93573702]
[1765652610575,0.3009601,3103.8,3103.5,6.93573702]
[1765652610778,0.3009601,3103.7,3103.5,6.93573702]
[1765652611081,0.9837,3103.9,3103.5,6.93573702]
[1765652611410,0.30095962,3103.8,3103.5,6.93573702]
[1765652611590,0.30095962,3103.7,3103.5,6.93573702]
[1765652611782,0.9837,3103.9,3103.5,6.93573702]
[1765652611982,0.30096217,3103.8,3103.5,6.93573702]
[1765652612183,0.30096217,3103.7,3103.5,6.44433702]
[1765652612515,0.4757,3103.9,3103.5,6.44433702]
[1765652612716,0.30096416,3103.8,3103.5,6.93573702]
[1765652612903,0.30096416,3103.7,3103.5,6.93573702]
[1765652613214,0.4757,3103.9,3103.5,6.93573702]
[1765652613383,0.30096402,3103.8,3103.5,6.44433702]
[1765652613584,0.30096402,3103.7,3103.5,6.44433702]
[1765652613802,0.4757,3103.9,3103.5,6.93573702]
[1765652614003,0.30096878,3103.8,3103.5,6.93573702]
[1765652614203,0.30096878,3103.7,3103.5,6.93573702]
[1765652614530,0.509,3104.0,3103.8,0.4665]
[1765652614815,0.509,3104.0,3103.6,0.4914]
[1765652614816,0.509,3104.0,3103.9,0.4665]
[1765652615018,0.80993124,3104.0,3103.9,0.4665]
[1765652615517,0.80993124,3104.0,3103.9,3.68825327]
[1765652616817,0.30193124,3104.0,3103.9,3.68825327]
[1765652629934,0.72523124,3104.0,3103.9,3.68825327]
[1765652631236,0.72523124,3104.0,3103.8,3.22185707]
[1765652631433,0.4243,3104.0,3103.8,3.22185707]
[1765652633741,0.001,3104.0,3103.8,3.22185707]
[1765652635636,0.001,3104.0,3103.6,6.44412938]
[1765652635841,0.001,3104.0,3103.8,0.4621]
[1765652636024,0.001,3104.0,3103.6,6.44412938]
[1765652636231,0.001,3104.0,3103.7,1.96207428]
[1765652636837,0.001,3104.0,3103.7,0.4621]
[1765652637424,0.001,3104.0,3103.8,3.22185707]
[1765652639341,0.001,3104.0,3103.9,3.71925327]
[1765652639541,0.30190244,3104.0,3103.9,3.71925327]
[1765652641013,0.3019385,3104.0,3103.9,3.71925327]
[1765652641638,0.7252385,3104.0,3103.9,3.22175327]
[1765652642136,1.2004385,3104.0,3103.9,3.22175327]
[1765652645942,1.2004385,3104.0,3103.7,6.44389155]
[1765652646142,0.3009385,3103.9,3103.7,6.44389155]
[1765652646441,0.8995,3104.0,3103.7,6.44389155]
[1765652646645,0.30110698,3103.9,3103.7,6.44389155]
[1765652646845,0.8995,3104.0,3103.7,6.44389155]
[1765652647034,0.30111006,3103.9,3103.7,6.44389155]
[1765652647234,0.8995,3104.0,3103.7,6.44389155]
[1765652647538,0.30110689,3103.9,3103.7,6.44389155]
[1765652647845,0.8995,3104.0,3103.7,6.44389155]
[1765652648025,0.30110666,3103.9,3103.7,6.44389155]
[1765652648226,0.4243,3104.0,3103.7,6.90599155]
[1765652648425,0.30110663,3103.9,3103.8,0.4975]
[1765652652247,0.30110663,3103.9,3103.8,3.71935707]
[1765652653763,0.30110663,3103.9,3103.8,4.18145707]
[1765652653954,0.30110663,3103.9,3103.8,5.14905074]
[1765652656554,0.001,3104.0,3103.8,5.14905074]
[1765652656922,0.001,3104.0,3103.8,4.18145707]
[1765652657121,0.001,3104.0,3103.9,0.96759367]
[1765652657322,0.3020867,3104.0,3103.9,0.96759367]
[1765652658959,0.3020867,3104.0,3103.9,4.68684694]
[1765652661958,1.2003867,3104.0,3103.9,0.96759367]
[1765652662567,1.2003867,3104.0,3103.9,4.18934694]
[1765652665250,1.2003867,3104.0,3103.9,0.96759367]
[1765652666570,1.2003867,3104.0,3103.9,4.18934694]
[1765652670673,0.7094867,3104.0,3103.9,4.18934694]
[1765652677312,0.3020867,3104.0,3103.9,4.66034694]
[1765652677754,0.7147867,3104.0,3103.9,4.18934694]
[1765652679685,0.3020867,3104.0,3103.9,4.66034694]
[1765652680785,0.3020867,3104.0,3103.9,5.11684694]
[1765652683698,0.3020867,3104.0,3103.9,4.66034694]
[1765652689999,0.30211209,3104.0,3103.9,4.66034694]
[1765652693204,0.30211209,3104.0,3103.9,4.18934694]
[1765652696404,0.71481209,3104.0,3103.9,4.18934694]
[1765652696604,1.20051209,3104.0,3103.9,0.96759367]
[1765652706225,4.42216157,3104.0,3103.6,3.83]
[1765652706525,0.1986,3103.7,3103.6,3.83]
[1765652706821,0.49971209,3103.7,3103.6,3.83]
[1765652707028,0.98731209,3103.7,3103.6,3.83]
[1765652709003,0.98731209,3103.7,3103.1,6.44516772]
[1765652709203,0.4876,3103.6,3103.2,0.96781842]
[1765652709516,0.001,3104.0,3103.2,2.09211703]
[1765652709712,0.80873995,3103.9,3103.5,0.4632]
[1765652709893,0.30073995,3103.8,3103.5,0.4632]
[1765652710095,0.30073995,3103.7,3103.5,0.9518]
[1765652710322,0.508,3103.7,3103.5,0.9518]
[1765652710625,0.508,3103.7,3103.6,0.4632]
[1765652710813,0.80870273,3103.7,3103.6,0.4632]
[1765652711434,0.80870273,3103.7,3103.6,3.68526469]
[1765652712321,0.508,3103.7,3103.6,3.68526469]
[1765652713127,0.9138,3103.7,3103.6,3.22206469]
[1765652715598,0.9138,3103.7,3103.6,4.13586469]
[1765652717816,0.4058,3103.7,3103.6,4.13586469]
[1765652719229,0.9956,3103.9,3103.6,4.13586469]
[1765652719533,0.300587,3103.8,3103.6,4.13586469]
[1765652719732,0.9956,3103.9,3103.6,4.13586469]
[1765652719908,0.30058695,3103.8,3103.6,4.13586469]
[1765652720110,0.9956,3103.9,3103.6,4.13586469]
[1765652720310,0.3005907,3103.8,3103.6,4.13586469]
[1765652720510,0.508,3103.9,3103.6,4.13586469]
[1765652720711,0.4058,3103.7,3103.6,4.13586469]
[1765652721108,0.508,3103.9,3103.6,8.30972938]
[1765652721433,0.30059527,3103.8,3103.7,0.4886]
[1765652721737,0.30059527,3103.8,3103.7,0.9966]
[1765652721935,0.30059527,3103.8,3103.7,1.4598]
[1765652724847,0.30059527,3103.8,3103.7,4.68176088]
[1765652725641,0.30059527,3103.8,3103.7,4.19316088]
[1765652736961,0.30096506,3103.8,3103.7,4.19316088]
[1765652737328,0.30096506,3103.8,3103.7,4.67516088]
[1765652738034,0.30096506,3103.8,3103.7,4.19316088]
[1765652745478,0.71586506,3103.8,3103.7,3.72996088]
[1765652749567,0.7158654,3103.8,3103.7,3.72996088]
[1765652750167,0.30096541,3103.8,3103.7,4.19566088]
[1765652750952,0.30096541,3103.8,3103.7,4.67766088]
[1765652753055,0.30096541,3103.8,3103.7,4.19566088]
[1765652754073,0.30096541,3103.8,3103.7,3.72996088]
[1765652754367,0.71186541,3103.8,3103.7,3.72996088]
[1765652759160,1.18196541,3103.8,3103.7,0.508]
[1765652759564,1.18196541,3103.8,3103.7,3.72996088]
[1765652760681,1.68996541,3103.8,3103.4,3.83]
[1765652760869,0.77106541,3103.7,3103.5,3.22208703]
[1765652761070,0.4701,3103.7,3103.6,0.9677591]
[1765652761250,0.77106075,3103.7,3103.6,0.9677591]
[1765652761452,1.18986075,3103.7,3103.6,0.9677591]
[1765652763455,0.30096075,3103.7,3103.6,4.64592379]
[1765652764250,0.71976075,3103.7,3103.6,4.18982379]
[1765652764454,0.30096075,3103.7,3103.6,4.64592379]
[1765652764676,0.30096075,3103.7,3103.6,5.11992379]
[1765652764873,0.30096075,3103.7,3103.6,6.42675347]
[1765652767585,0.30096075,3103.7,3103.6,5.95275347]
[1765652767787,0.001,3104.0,3103.6,10.67865992]
[1765652767963,0.001,3104.0,3103.9,0.4561]
[1765652768169,0.30183477,3104.0,3103.9,0.4561]
[1765652768471,0.30183477,3104.0,3103.9,1.05911706]
[1765652768983,0.30183477,3104.0,3103.9,4.28087033]
[1765652770086,0.001,3104.0,3103.9,4.28087033]
[1765652770283,0.001,3104.0,3103.9,5.50373422]
[1765652770484,0.001,3104.0,3103.9,4.28087033]
[1765652774892,0.001,3104.0,3103.9,3.80687033]
[1765652786600,0.001,3104.0,3103.9,4.27947033]
[1765652788504,0.001,3104.0,3103.9,4.31168786]
[1765652788674,0.001,3104.0,3103.9,8.14168786]
[1765652788998,0.001,3104.0,3103.9,6.73399253]
[1765652789703,0.001,3104.0,3103.9,7.13949653]
[1765652790400,0.001,3104.0,3103.9,11.86540298]
[1765652793007,0.001,3104.0,3103.9,16.79540298]
[1765652793606,0.001,3104.0,3103.9,17.37587827]
[1765652796696,0.001,3104.0,3103.9,32.51682127]
[1765652797724,0.001,3104.0,3103.9,28.84264727]
[1765652797884,0.001,3104.0,3103.9,32.23564727]
[1765652798086,0.001,3104.0,3103.9,28.84264727]
[1765652798287,0.001,3104.0,3103.9,27.54864727]
[1765652800408,0.001,3104.0,3103.9,26.62273827]
[1765652801687,0.001,3104.0,3103.9,26.61848373]
[1765652803011,0.001,3104.0,3103.9,25.59037773]
[1765652805814,0.001,3104.0,3103.9,24.27837773]
[1765652807939,0.001,3104.0,3103.9,27.67056279]
[1765652812837,0.001,3104.5,3103.9,27.67056279]
[1765652812838,0.31136841,3104.8,3104.0,0.878104]
[1765652813144,0.31136841,3104.8,3104.5,0.405504]
[1765652813444,0.31136841,3104.8,3104.4,4.72183697]
[1765652813445,0.31136841,3104.8,3104.7,0.405504]
[1765652813819,0.001,3104.9,3104.7,5.61654097]
[1765652814138,0.001,3104.9,3104.7,5.92790938]
[1765652814444,0.001,3104.9,3104.7,5.61654097]
[1765652814650,0.001,3104.9,3104.8,0.12896132]
[1765652814949,0.4726,3104.9,3104.8,3.34978069]
[1765652815147,0.5796,3104.9,3104.8,3.34978069]
[1765652816847,0.001,3104.9,3104.8,4.25488469]
[1765652817230,0.001,3104.9,3104.8,4.75058469]
[1765652817442,0.001,3104.9,3104.8,6.38408995]
[1765652819754,0.001,3104.9,3104.8,5.88838995]
[1765652820432,0.001,3104.9,3104.8,6.38408995]
[1765652821054,0.001,3104.9,3104.8,5.88838995]
[1765652822255,0.001,3104.9,3104.8,9.21878995]
[1765652822553,0.1002,3104.9,3104.8,9.21878995]
[1765652823050,0.5758,3104.9,3104.8,7.58528469]
[1765652823218,0.7608,3104.9,3104.8,7.58528469]
[1765652823552,0.7608,3104.9,3104.8,7.17978069]
[1765652823952,0.7608,3104.9,3104.8,3.34978069]
[1765652824653,0.0019,3104.9,3104.8,3.34978069]
[1765652828957,0.0019,3104.9,3104.3,6.44263816]
[1765652829158,0.0019,3104.4,3104.3,3.22130002]
[1765652829455,0.0019,3104.4,3104.3,3.91637486]
[1765652829964,0.0019,3104.4,3104.3,4.49685015]
[1765652845560,0.0019,3104.4,3104.3,8.32685015]
[1765652847459,0.30022799,3105.2,3104.3,15.74512643]
[1765652847678,0.0019,3105.0,3104.5,9.66339183]
[1765652847879,0.0019,3105.0,3104.5,11.55997603]
[1765652848059,0.0019,3105.0,3104.6,0.96739086]
[1765652849356,0.0019,3105.0,3104.6,0.99960112]
[1765652849557,0.0019,3105.0,3104.7,6.44184622]
[1765652850056,0.0019,3105.0,3104.8,0.30032297]
[1765652855387,0.0019,3105.0,3104.9,3.22071564]
[1765652855991,0.0019,3105.0,3104.9,3.72971564]
[1765652859990,0.509,3105.7,3104.9,6.95043128]
[1765652860286,0.0019,3105.0,3104.9,3.72971564]
[1765652860590,0.0019,3105.0,3104.9,4.23785198]
[1765652860989,0.0019,3105.0,3104.9,4.53872474]
[1765652863602,0.001,3105.7,3104.9,11.95575602]
[1765652863895,0.0019,3105.5,3104.9,11.95575602]
[1765652864201,0.001,3105.7,3105.0,1.007]
[1765652864202,0.30090675,3105.4,3105.0,1.007]
[1765652864387,0.0029,3105.7,3105.0,2.2025756]
[1765652864566,0.30081994,3105.6,3105.0,1.6935756]
[1765652864900,0.001,3105.7,3105.2,9.66121344]
[1765652865189,0.001,3105.7,3105.6,0.4776]
[1765652865562,0.001,3105.7,3105.6,1.176]
[1765652868400,0.001,3105.7,3105.6,4.39598969]
[1765652868695,0.001,3105.7,3105.6,5.15759869]
[1765652870086,0.001,3105.7,3105.6,4.65959869]
[1765652875396,0.0098,3105.7,3105.6,4.18199869]
[1765652877312,0.0186,3105.7,3105.6,3.42038969]
[1765652880096,0.0098,3105.7,3105.6,3.42038969]
[1765652881102,0.0098,3105.7,3105.6,0.2004]
[1765652881103,0.0186,3105.7,3105.6,0.2004]
[1765652881578,0.0186,3105.7,3105.5,3.22004905]
[1765652881778,0.0176,3105.6,3105.5,3.22004905]
[1765652883377,0.0176,3105.6,3105.5,3.87697733]
[1765652885279,0.0088,3105.6,3105.5,3.87697733]
[1765652885609,0.0088,3105.6,3105.5,3.22004905]
[1765652887408,0.001,3105.7,3105.5,3.71844905]
[1765652887986,0.0088,3105.6,3105.5,3.22004905]
[1765652888188,0.0176,3105.6,3105.5,3.22004905]
[1765652888388,0.001,3105.7,3105.5,3.22004905]
[1765652889306,0.0088,3105.6,3105.5,3.22004905]
[1765652891591,0.0176,3105.6,3105.4,3.22015172]
[1765652891912,0.0088,3105.6,3105.4,3.22015172]
[1765652892219,0.0176,3105.5,3105.1,6.44101638]
[1765652892421,0.0088,3105.4,3105.1,7.90228263]
[1765652893400,0.001,3105.7,3105.2,0.485]
[1765652893807,0.0098,3105.7,3105.2,0.485]
[1765652894114,0.001,3105.7,3105.4,6.44039414]
[1765652894291,0.001,3105.7,3105.5,0.49408833]
[1765652894892,0.0088,3105.6,3105.5,0.49408833]
[1765652897119,0.0088,3105.6,3105.5,3.71418171]
[1765652897321,0.0088,3105.6,3105.5,3.22009338]
[1765652899219,0.0088,3105.6,3105.3,6.44060154]
[1765652900420,0.0088,3105.4,3105.2,3.22037293]
[1765652900610,0.0088,3105.3,3105.2,3.22037293]
[1765652900925,0.0176,3105.3,3105.2,3.22037293]
[1765652901490,0.30086195,3105.6,3105.2,8.06827345]
[1765652901797,0.001,3105.7,3105.2,8.06827345]
[1765652902004,0.3008619,3105.6,3105.2,7.42417741]
[1765652902198,0.0098,3105.7,3105.2,6.93917741]
[1765652902425,0.30964527,3105.6,3105.2,6.93917741]
[1765652902719,0.0088,3105.6,3105.2,6.93917741]
[1765652905326,0.30092511,3105.5,3105.2,6.93917741]
[1765652905509,0.0088,3105.6,3105.2,6.93917741]
[1765652905708,0.30092231,3105.5,3105.2,6.93917741]
[1765652905927,0.0088,3105.6,3105.2,6.93917741]
[1765652906708,0.001,3105.7,3105.2,7.42487741]
[1765652907026,0.3009864,3105.6,3105.2,7.42487741]
[1765652907233,0.0098,3105.7,3105.2,7.42487741]
[1765652907527,0.30098628,3105.6,3105.2,7.42487741]
[1765652907829,0.0098,3105.7,3105.2,7.42487741]
[1765652908130,0.30100655,3105.6,3105.2,7.42487741]
[1765652908326,0.0098,3105.7,3105.2,7.42487741]
[1765652908529,0.30101432,3105.6,3105.2,7.42487741]
[1765652908837,0.0098,3105.7,3105.2,7.42487741]
[1765652909002,0.30101433,3105.6,3105.2,7.42487741]
[1765652909339,0.0098,3105.7,3105.2,7.42487741]
[1765652909542,0.30102516,3105.6,3105.2,7.42487741]
[1765652909738,0.0098,3105.7,3105.2,7.42487741]
[1765652909928,0.30102516,3105.6,3105.2,7.42487741]
[1765652910101,0.0098,3105.7,3105.2,7.42487741]
[1765652910307,0.30103505,3105.6,3105.2,7.42487741]
[1765652910508,0.0098,3105.7,3105.2,7.42487741]
[1765652910706,0.30103813,3105.6,3105.2,7.42487741]
[1765652910936,0.0088,3105.3,3105.2,3.22037293]
[1765652912943,0.0088,3105.3,3105.0,6.44112409]
[1765652913143,0.0088,3105.1,3105.0,3.22051218]
[1765652913316,0.0088,3105.5,3105.0,6.44112409]
[1765652913636,0.0088,3105.5,3105.0,6.92682409]
[1765652913857,0.001,3105.7,3105.1,0.4857]
[1765652914009,0.30102468,3105.6,3105.1,0.4857]
[1765652914346,0.30102468,3105.5,3105.1,0.4857]
[1765652914550,0.0098,3105.7,3105.1,0.4857]
[1765652914745,0.30101806,3105.6,3105.1,0.4857]
[1765652914914,0.30101806,3105.5,3105.1,0.4857]
[1765652915119,0.0098,3105.7,3105.2,6.44080896]
[1765652915324,0.30100391,3105.6,3105.2,6.44080896]
[1765652915538,0.30100391,3105.5,3105.2,6.44080896]
[1765652915734,0.0098,3105.7,3105.2,6.44080896]
[1765652916045,0.30098417,3105.6,3105.2,6.44080896]
[1765652916375,0.30098417,3105.5,3105.2,6.44080896]
[1765652916539,0.0098,3105.7,3105.2,6.44080896]
[1765652916759,0.0088,3105.3,3105.2,3.22040448]
[1765652917234,0.0088,3105.6,3105.2,6.44080896]
[1765652917433,0.30098221,3105.5,3105.2,6.44080896]
[1765652917634,0.0088,3105.6,3105.2,6.44080896]
[1765652917846,0.30098222,3105.5,3105.2,6.44080896]
[1765652918045,0.0088,3105.6,3105.2,6.44080896]
[1765652918244,0.30098925,3105.5,3105.2,6.44080896]
[1765652918421,0.0088,3105.6,3105.2,6.44080896]
[1765652918628,0.30098926,3105.5,3105.2,6.44080896]
[1765652918828,0.0088,3105.6,3105.2,6.44080896]
[1765652919026,0.30098925,3105.5,3105.2,6.44080896]
[1765652919255,0.0088,3105.6,3105.2,6.44080896]
[1765652919457,0.30099872,3105.5,3105.2,6.44080896]
[1765652919757,0.0088,3105.6,3105.2,6.44080896]
[1765652920056,0.30099871,3105.5,3105.2,6.44080896]
[1765652920256,0.0088,3105.6,3105.2,6.44080896]
[1765652920456,0.30101081,3105.5,3105.2,0.4857]
[1765652920637,0.001,3105.7,3105.2,0.4857]
[1765652920837,0.30101087,3105.6,3105.2,0.4857]
[1765652921057,0.30101087,3105.5,3105.2,0.4857]